[Event "Titled Tuesday Blitz August 16 Late 2022"]
[White "Akbas, Umut Ata"]
[Black "Sourath Biswas"]
[WhiteFideId "44572646"]
[BlackFideId "35091484"]
[WhiteElo "1654"]
[BlackElo "1777"]
[Result "1-0"]
[Round "10"]
[TimeControl "180+1"]
[Date "2022.08.16"]
[WhiteClock "0:01:22"]
[BlackClock "0:00:09"]

1. Nf3 {[%clk 0:03:00]}  Nf6 {[%clk 0:03:00]} 2. b3 {[%clk 0:03:01]}  g6 {[%clk 0:02:59]} 3. Bb2 {[%clk 0:03:01]}  Bg7 {[%clk 0:02:59]} 4. e3 {[%clk 0:03:01]}  O-O {[%clk 0:02:59]} 5. c4 {[%clk 0:03:01]}  b6 {[%clk 0:02:52]} 6. Be2 {[%clk 0:03:01]}  Bb7 {[%clk 0:02:53]} 7. O-O {[%clk 0:03:01]}  d6 {[%clk 0:02:53]} 8. d4 {[%clk 0:03:01]}  e5 {[%clk 0:02:53]} 9. dxe5 {[%clk 0:03:01]}  Ng4 {[%clk 0:02:53]} 10. Nbd2 {[%clk 0:03:00]}  Nxe5 {[%clk 0:02:51]} 11. Qc2 {[%clk 0:02:59]}  Qe7 {[%clk 0:02:47]} 12. Nxe5 {[%clk 0:02:58]}  dxe5 {[%clk 0:02:48]} 13. Bf3 {[%clk 0:02:56]}  Nc6 {[%clk 0:02:36]} 14. c5 {[%clk 0:02:49]}  Nb4 {[%clk 0:02:30]} 15. Qc4 {[%clk 0:02:46]}  Bxf3 {[%clk 0:02:28]} 16. Nxf3 {[%clk 0:02:46]}  Qxc5 {[%clk 0:02:22]} 17. Qxc5 {[%clk 0:02:46]}  bxc5 {[%clk 0:02:23]} 18. Bxe5 {[%clk 0:02:45]}  Rfd8 {[%clk 0:02:14]} 19. Bxg7 {[%clk 0:02:42]}  Kxg7 {[%clk 0:02:14]} 20. Rfc1 {[%clk 0:02:35]}  Nd3 {[%clk 0:02:03]} 21. Rc3 {[%clk 0:02:33]}  Rd6 {[%clk 0:02:02]} 22. Kf1 {[%clk 0:02:25]}  Re8 {[%clk 0:01:59]} 23. a3 {[%clk 0:02:20]}  a5 {[%clk 0:01:54]} 24. Ke2 {[%clk 0:02:13]}  Nf4+ {[%clk 0:01:54]} 25. Kf1 {[%clk 0:02:14]}  Nd3 {[%clk 0:01:54]} 26. g3 {[%clk 0:02:12]}  Ne5 {[%clk 0:01:25]} 27. Nxe5 {[%clk 0:02:11]}  Rxe5 {[%clk 0:01:26]} 28. Rac1 {[%clk 0:02:11]}  Rb6 {[%clk 0:01:26]} 29. Rxc5 {[%clk 0:02:07]}  Rxc5 {[%clk 0:01:25]} 30. Rxc5 {[%clk 0:02:08]}  Rxb3 {[%clk 0:01:26]} 31. Rxa5 {[%clk 0:02:09]}  c5 {[%clk 0:01:21]} 32. Ke2 {[%clk 0:01:59]}  c4 {[%clk 0:01:21]} 33. e4 {[%clk 0:01:58]}  Rb2+ {[%clk 0:01:20]} 34. Ke3 {[%clk 0:01:59]}  c3 {[%clk 0:01:04]} 35. Rc5 {[%clk 0:01:59]}  Rb3 {[%clk 0:01:04]} 36. a4 {[%clk 0:01:59]}  Ra3 {[%clk 0:01:03]} 37. a5 {[%clk 0:01:59]}  c2+ {[%clk 0:00:56]} 38. Kd2 {[%clk 0:01:56]}  Ra2 {[%clk 0:00:57]} 39. f4 {[%clk 0:01:48]}  Kf6 {[%clk 0:00:57]} 40. Rc6+ {[%clk 0:01:42]}  Ke7 {[%clk 0:00:55]} 41. a6 {[%clk 0:01:42]}  Kd7 {[%clk 0:00:53]} 42. Rb6 {[%clk 0:01:42]}  h5 {[%clk 0:00:44]} 43. h3 {[%clk 0:01:30]}  Ke7 {[%clk 0:00:36]} 44. g4 {[%clk 0:01:27]}  hxg4 {[%clk 0:00:37]} 45. hxg4 {[%clk 0:01:28]}  Kd7 {[%clk 0:00:38]} 46. e5 {[%clk 0:01:27]}  Ke7 {[%clk 0:00:37]} 47. f5 {[%clk 0:01:27]}  gxf5 {[%clk 0:00:37]} 48. gxf5 {[%clk 0:01:28]}  Ra5 {[%clk 0:00:16]} 49. Rb7+ {[%clk 0:01:26]}  Kf8 {[%clk 0:00:13]} 50. a7 {[%clk 0:01:24]}  Kg7 {[%clk 0:00:13]} 51. e6 {[%clk 0:01:24]}  Rc5 {[%clk 0:00:10]} 52. Rxf7+ {[%clk 0:01:22]}  Kh6 {[%clk 0:00:09]} 53. Kc1 {[%clk 0:01:23]}  Rc8 {[%clk 0:00:09]} 54. e7 {[%clk 0:01:22]} 1-0


[Site "https://www.chess.com"]

[Event "Titled Tuesday Blitz August 16 Late 2022"]
[White "Avila Pavas, Santiago"]
[Black "Miszler, Levente"]
[WhiteFideId "4437128"]
[BlackFideId "763276"]
[WhiteElo "2291"]
[BlackElo "1966"]
[Result "1-0"]
[Round "10"]
[TimeControl "180+1"]
[Date "2022.08.16"]
[WhiteClock "0:00:11"]
[BlackClock "0:00:01"]

1. b3 {[%clk 0:03:00]}  e5 {[%clk 0:02:58]} 2. Bb2 {[%clk 0:03:01]}  Nc6 {[%clk 0:02:58]} 3. g3 {[%clk 0:03:01]}  g6 {[%clk 0:02:59]} 4. Bg2 {[%clk 0:03:02]}  Bg7 {[%clk 0:02:59]} 5. Nf3 {[%clk 0:03:02]}  d6 {[%clk 0:02:59]} 6. O-O {[%clk 0:03:02]}  Nf6 {[%clk 0:02:59]} 7. d4 {[%clk 0:03:02]}  e4 {[%clk 0:02:55]} 8. Nfd2 {[%clk 0:03:01]}  Qe7 {[%clk 0:02:52]} 9. e3 {[%clk 0:03:01]}  O-O {[%clk 0:02:50]} 10. a3 {[%clk 0:02:54]}  Bg4 {[%clk 0:02:46]} 11. Qe1 {[%clk 0:02:54]}  d5 {[%clk 0:02:40]} 12. c4 {[%clk 0:02:54]}  Be6 {[%clk 0:02:37]} 13. Nc3 {[%clk 0:02:54]}  Rad8 {[%clk 0:02:33]} 14. cxd5 {[%clk 0:02:54]}  Bxd5 {[%clk 0:02:34]} 15. Nxd5 {[%clk 0:02:54]}  Rxd5 {[%clk 0:02:34]} 16. a4 {[%clk 0:02:50]}  Re8 {[%clk 0:02:26]} 17. Ba3 {[%clk 0:02:50]}  Qd7 {[%clk 0:02:20]} 18. Rc1 {[%clk 0:02:50]}  Rh5 {[%clk 0:02:19]} 19. Qe2 {[%clk 0:02:22]}  Ne7 {[%clk 0:01:51]} 20. Nxe4 {[%clk 0:01:43]}  Nxe4 {[%clk 0:01:40]} 21. Bxe4 {[%clk 0:01:44]}  Qh3 {[%clk 0:01:40]} 22. f3 {[%clk 0:01:45]}  Nd5 {[%clk 0:01:00]} 23. Rf2 {[%clk 0:01:09]}  Bh6 {[%clk 0:00:43]} 24. Bxd5 {[%clk 0:00:48]}  Bxe3 {[%clk 0:00:42]} 25. Kh1 {[%clk 0:00:32]}  Rxd5 {[%clk 0:00:21]} 26. Re1 {[%clk 0:00:32]}  Re6 {[%clk 0:00:19]} 27. Rff1 {[%clk 0:00:29]}  Rxd4 {[%clk 0:00:18]} 28. Rd1 {[%clk 0:00:26]}  Rxd1 {[%clk 0:00:08]} 29. Rxd1 {[%clk 0:00:27]}  Bc5 {[%clk 0:00:03]} 30. Rd8+ {[%clk 0:00:13]}  Kg7 {[%clk 0:00:03]} 31. Qb2+ {[%clk 0:00:13]}  f6 {[%clk 0:00:03]} 32. Bxc5 {[%clk 0:00:13]}  Re1+ {[%clk 0:00:03]} 33. Bg1 {[%clk 0:00:13]}  Qf1 {[%clk 0:00:02]} 34. Rd7+ {[%clk 0:00:12]}  Kh6 {[%clk 0:00:02]} 35. Qd2+ {[%clk 0:00:10]}  g5 {[%clk 0:00:01]} 36. Qg2 {[%clk 0:00:11]}  Qa6 {[%clk 0:00:01]} 37. Qh3+ {[%clk 0:00:11]} 1-0


[Site "https://www.chess.com"]

[Event "Titled Tuesday Blitz August 16 Late 2022"]
[White "Barash, Anton"]
[Black "Bringas Gomez, Artai"]
[WhiteFideId "30935229"]
[BlackFideId "24534064"]
[WhiteElo "2088"]
[BlackElo "2039"]
[Result "0-1"]
[Round "10"]
[TimeControl "180+1"]
[Date "2022.08.18"]
[WhiteClock "0:00:00"]
[BlackClock "0:00:00"]

1. e4 {[%clk 0:00:00]}  d5 {[%clk 0:00:00]} 2. exd5 {[%clk 0:00:00]}  c6 {[%clk 0:00:00]} 3. dxc6 {[%clk 0:00:00]}  e5 {[%clk 0:00:00]} 4. Nf3 {[%clk 0:00:00]}  Nxc6 {[%clk 0:00:00]} 5. Bb5 {[%clk 0:00:00]}  Bc5 {[%clk 0:00:00]} 6. O-O {[%clk 0:00:00]}  Ne7 {[%clk 0:00:00]} 7. Nxe5 {[%clk 0:00:00]}  O-O {[%clk 0:00:00]} 8. Nxc6 {[%clk 0:00:00]}  bxc6 {[%clk 0:00:00]} 9. Bc4 {[%clk 0:00:00]}  Bd6 {[%clk 0:00:00]} 10. d3 {[%clk 0:00:00]}  Nf5 {[%clk 0:00:00]} 11. Nc3 {[%clk 0:00:00]}  Qh4 {[%clk 0:00:00]} 12. g3 {[%clk 0:00:00]}  Qh3 {[%clk 0:00:00]} 13. Ne4 {[%clk 0:00:00]}  Nh4 {[%clk 0:00:00]} 0-1


[Site "https://www.chess.com"]

[Event "Titled Tuesday Blitz August 16 Late 2022"]
[White "Barria Zuniga, Daniel"]
[Black "Martinez Reyes, Pedro Ramon"]
[WhiteFideId "3400816"]
[BlackFideId "3901807"]
[WhiteElo "2414"]
[BlackElo "2327"]
[Result "0-1"]
[Round "10"]
[TimeControl "180+1"]
[Date "2022.08.18"]
[WhiteClock "0:00:00"]
[BlackClock "0:00:00"]

1. d4 {[%clk 0:00:00]}  d5 {[%clk 0:00:00]} 2. c4 {[%clk 0:00:00]}  dxc4 {[%clk 0:00:00]} 3. Nf3 {[%clk 0:00:00]}  Nf6 {[%clk 0:00:00]} 4. e3 {[%clk 0:00:00]}  e6 {[%clk 0:00:00]} 5. Bxc4 {[%clk 0:00:00]}  c6 {[%clk 0:00:00]} 6. O-O {[%clk 0:00:00]}  b5 {[%clk 0:00:00]} 7. Bb3 {[%clk 0:00:00]}  Bb7 {[%clk 0:00:00]} 8. Nc3 {[%clk 0:00:00]}  Nbd7 {[%clk 0:00:00]} 9. e4 {[%clk 0:00:00]}  b4 {[%clk 0:00:00]} 10. e5 {[%clk 0:00:00]}  bxc3 {[%clk 0:00:00]} 11. exf6 {[%clk 0:00:00]}  cxb2 {[%clk 0:00:00]} 12. fxg7 {[%clk 0:00:00]}  Bxg7 {[%clk 0:00:00]} 13. Bxb2 {[%clk 0:00:00]}  O-O {[%clk 0:00:00]} 14. Rc1 {[%clk 0:00:00]}  c5 {[%clk 0:00:00]} 15. Ba3 {[%clk 0:00:00]}  Rc8 {[%clk 0:00:00]} 16. Bxc5 {[%clk 0:00:00]}  Nxc5 {[%clk 0:00:00]} 17. dxc5 {[%clk 0:00:00]}  Qa5 {[%clk 0:00:00]} 18. Qd6 {[%clk 0:00:00]}  Rfd8 {[%clk 0:00:00]} 19. Qe7 {[%clk 0:00:00]}  Qc7 {[%clk 0:00:00]} 20. Qg5 {[%clk 0:00:00]}  h6 {[%clk 0:00:00]} 21. Qh5 {[%clk 0:00:00]}  Qf4 {[%clk 0:00:00]} 22. Rc4 {[%clk 0:00:00]}  Qf6 {[%clk 0:00:00]} 23. Rfc1 {[%clk 0:00:00]}  Rd5 {[%clk 0:00:00]} 24. Qg4 {[%clk 0:00:00]}  Rdxc5 {[%clk 0:00:00]} 25. h4 {[%clk 0:00:00]}  Rxc4 {[%clk 0:00:00]} 26. Rxc4 {[%clk 0:00:00]}  Rxc4 {[%clk 0:00:00]} 27. Qxc4 {[%clk 0:00:00]}  Bxf3 {[%clk 0:00:00]} 28. Qc8+ {[%clk 0:00:00]}  Bf8 {[%clk 0:00:00]} 29. gxf3 {[%clk 0:00:00]}  Qxf3 {[%clk 0:00:00]} 30. Qc4 {[%clk 0:00:00]}  Be7 {[%clk 0:00:00]} 31. Qd4 {[%clk 0:00:00]}  Bf6 {[%clk 0:00:00]} 32. Qxa7 {[%clk 0:00:00]}  Bxh4 {[%clk 0:00:00]} 33. Qe3 {[%clk 0:00:00]}  Qg4+ {[%clk 0:00:00]} 34. Kf1 {[%clk 0:00:00]}  Bg5 {[%clk 0:00:00]} 35. Qg3 {[%clk 0:00:00]}  Qd4 {[%clk 0:00:00]} 36. Kg2 {[%clk 0:00:00]}  Kg7 {[%clk 0:00:00]} 37. Qf3 {[%clk 0:00:00]}  Be7 {[%clk 0:00:00]} 38. Qg3+ {[%clk 0:00:00]}  Bg5 {[%clk 0:00:00]} 39. Qf3 {[%clk 0:00:00]}  Qb4 {[%clk 0:00:00]} 40. Qg3 {[%clk 0:00:00]}  Kf6 {[%clk 0:00:00]} 41. Qf3+ {[%clk 0:00:00]}  Ke7 {[%clk 0:00:00]} 42. Qg3 {[%clk 0:00:00]}  f5 {[%clk 0:00:00]} 43. Qc7+ {[%clk 0:00:00]}  Kf6 {[%clk 0:00:00]} 44. Qd8+ {[%clk 0:00:00]}  Ke5 {[%clk 0:00:00]} 45. Qh8+ {[%clk 0:00:00]}  Kf4 {[%clk 0:00:00]} 46. Qc8 {[%clk 0:00:00]}  Qe4+ {[%clk 0:00:00]} 47. Kg1 {[%clk 0:00:00]}  e5 {[%clk 0:00:00]} 48. Qc1+ {[%clk 0:00:00]}  Kg4 {[%clk 0:00:00]} 49. Qd1+ {[%clk 0:00:00]}  Kh4 {[%clk 0:00:00]} 50. Bd5 {[%clk 0:00:00]}  Qb4 {[%clk 0:00:00]} 51. Qf3 {[%clk 0:00:00]}  Bf4 {[%clk 0:00:00]} 52. Qh1+ {[%clk 0:00:00]}  Kg5 {[%clk 0:00:00]} 53. Qg2+ {[%clk 0:00:00]}  Kf6 {[%clk 0:00:00]} 54. Qg8 {[%clk 0:00:00]}  Qe7 {[%clk 0:00:00]} 55. Qh8+ {[%clk 0:00:00]}  Qg7+ {[%clk 0:00:00]} 56. Qxg7+ {[%clk 0:00:00]}  Kxg7 {[%clk 0:00:00]} 57. a4 {[%clk 0:00:00]}  Bd2 {[%clk 0:00:00]} 58. f4 {[%clk 0:00:00]}  Bxf4 {[%clk 0:00:00]} 59. a5 {[%clk 0:00:00]}  Be3+ {[%clk 0:00:00]} 60. Kg2 {[%clk 0:00:00]}  Kf6 {[%clk 0:00:00]} 61. a6 {[%clk 0:00:00]}  e4 {[%clk 0:00:00]} 62. Bb7 {[%clk 0:00:00]}  Ba7 {[%clk 0:00:00]} 63. Kf1 {[%clk 0:00:00]}  Ke5 {[%clk 0:00:00]} 64. Bc8 {[%clk 0:00:00]}  h5 {[%clk 0:00:00]} 65. Kg2 {[%clk 0:00:00]}  f4 {[%clk 0:00:00]} 66. Bd7 {[%clk 0:00:00]}  h4 {[%clk 0:00:00]} 67. Be8 {[%clk 0:00:00]}  f3+ {[%clk 0:00:00]} 68. Kf1 {[%clk 0:00:00]}  Kf4 {[%clk 0:00:00]} 69. Bh5 {[%clk 0:00:00]}  e3 {[%clk 0:00:00]} 70. Be8 {[%clk 0:00:00]}  Kg3 {[%clk 0:00:00]} 71. Bb5 {[%clk 0:00:00]}  h3 {[%clk 0:00:00]} 0-1


[Site "https://www.chess.com"]

[Event "Titled Tuesday Blitz August 16 Late 2022"]
[White "Begmuratov, Khumoyun"]
[Black "Urazayev, Arystanbek"]
[WhiteFideId "14210207"]
[BlackFideId "13709810"]
[WhiteElo "1978"]
[BlackElo "2441"]
[Result "0-1"]
[Round "10"]
[TimeControl "180+1"]
[Date "2022.08.16"]
[WhiteClock "0:00:06"]
[BlackClock "0:00:56"]

1. e4 {[%clk 0:03:00]}  c5 {[%clk 0:02:58]} 2. Nf3 {[%clk 0:02:58]}  d6 {[%clk 0:02:59]} 3. d4 {[%clk 0:02:55]}  cxd4 {[%clk 0:02:59]} 4. Nxd4 {[%clk 0:02:56]}  Nf6 {[%clk 0:02:59]} 5. Nc3 {[%clk 0:02:56]}  a6 {[%clk 0:02:59]} 6. Bg5 {[%clk 0:02:56]}  Nc6 {[%clk 0:02:59]} 7. Bc4 {[%clk 0:02:54]}  e6 {[%clk 0:02:48]} 8. Qd2 {[%clk 0:02:16]}  Be7 {[%clk 0:02:46]} 9. O-O-O {[%clk 0:02:13]}  Nxd4 {[%clk 0:02:45]} 10. Qxd4 {[%clk 0:02:13]}  b5 {[%clk 0:02:45]} 11. Bb3 {[%clk 0:02:09]}  Bb7 {[%clk 0:02:42]} 12. f3 {[%clk 0:02:07]}  O-O {[%clk 0:02:37]} 13. h4 {[%clk 0:02:07]}  Bc6 {[%clk 0:02:21]} 14. g4 {[%clk 0:01:10]}  a5 {[%clk 0:02:21]} 15. a3 {[%clk 0:01:07]}  b4 {[%clk 0:02:19]} 16. axb4 {[%clk 0:01:04]}  axb4 {[%clk 0:02:19]} 17. Na2 {[%clk 0:00:52]}  d5 {[%clk 0:02:19]} 18. e5 {[%clk 0:00:49]}  Nd7 {[%clk 0:02:12]} 19. Bxe7 {[%clk 0:00:49]}  Qxe7 {[%clk 0:02:13]} 20. Qxb4 {[%clk 0:00:48]}  Qxb4 {[%clk 0:01:55]} 21. Nxb4 {[%clk 0:00:48]}  Nxe5 {[%clk 0:01:55]} 22. f4 {[%clk 0:00:48]}  Nf3 {[%clk 0:01:55]} 23. Kb1 {[%clk 0:00:47]}  Bb5 {[%clk 0:01:53]} 24. c3 {[%clk 0:00:28]}  Be2 {[%clk 0:01:48]} 25. Rc1 {[%clk 0:00:27]}  Nd2+ {[%clk 0:01:39]} 26. Kc2 {[%clk 0:00:27]}  Nxb3 {[%clk 0:01:40]} 27. Kxb3 {[%clk 0:00:27]}  Bxg4 {[%clk 0:01:40]} 28. c4 {[%clk 0:00:19]}  dxc4+ {[%clk 0:01:36]} 29. Rxc4 {[%clk 0:00:20]}  h5 {[%clk 0:01:37]} 30. Kc3 {[%clk 0:00:17]}  Be2 {[%clk 0:01:33]} 31. Rc5 {[%clk 0:00:13]}  Rfc8 {[%clk 0:01:24]} 32. Rxc8+ {[%clk 0:00:12]}  Rxc8+ {[%clk 0:01:24]} 33. Kd2 {[%clk 0:00:09]}  Bb5 {[%clk 0:01:22]} 34. Nc2 {[%clk 0:00:08]}  Rd8+ {[%clk 0:01:01]} 35. Kc3 {[%clk 0:00:08]}  Rd3+ {[%clk 0:00:59]} 36. Kb4 {[%clk 0:00:08]}  Bc6 {[%clk 0:01:00]} 37. Ra1 {[%clk 0:00:08]}  Bd5 {[%clk 0:00:59]} 38. Ra3 {[%clk 0:00:04]}  Rd2 {[%clk 0:00:58]} 39. Kc3 {[%clk 0:00:05]}  Rh2 {[%clk 0:00:57]} 40. b4 {[%clk 0:00:04]}  Rxh4 {[%clk 0:00:57]} 41. b5 {[%clk 0:00:04]}  Rh3+ {[%clk 0:00:58]} 42. Kb4 {[%clk 0:00:04]}  Rxa3 {[%clk 0:00:58]} 43. Kxa3 {[%clk 0:00:04]}  h4 {[%clk 0:00:59]} 44. Ne3 {[%clk 0:00:04]}  h3 {[%clk 0:00:57]} 45. Nxd5 {[%clk 0:00:04]}  h2 {[%clk 0:00:57]} 46. b6 {[%clk 0:00:04]}  h1=Q {[%clk 0:00:56]} 47. b7 {[%clk 0:00:05]}  Qa1+ {[%clk 0:00:56]} 48. Kb4 {[%clk 0:00:05]}  Qb1+ {[%clk 0:00:56]} 49. Kc5 {[%clk 0:00:06]}  Qxb7 {[%clk 0:00:56]} 0-1


[Site "https://www.chess.com"]

[Event "Titled Tuesday Blitz August 16 Late 2022"]
[White "Bortnyk, Olexandr"]
[Black "Grischuk, Alexander"]
[WhiteFideId "14120828"]
[BlackFideId "4126025"]
[WhiteElo "2723"]
[BlackElo "2762"]
[Result "1-0"]
[Round "10"]
[TimeControl "180+1"]
[Date "2022.08.16"]
[WhiteClock "0:00:20"]
[BlackClock "0:00:03"]

1. d4 {[%clk 0:03:00]}  Nf6 {[%clk 0:02:54]} 2. Nc3 {[%clk 0:03:01]}  d5 {[%clk 0:02:55]} 3. Bf4 {[%clk 0:03:00]}  g6 {[%clk 0:02:55]} 4. e3 {[%clk 0:03:00]}  Bg7 {[%clk 0:02:55]} 5. h4 {[%clk 0:03:01]}  h5 {[%clk 0:02:55]} 6. Nb5 {[%clk 0:03:01]}  Na6 {[%clk 0:02:56]} 7. Nf3 {[%clk 0:03:01]}  O-O {[%clk 0:02:54]} 8. Be2 {[%clk 0:03:01]}  c6 {[%clk 0:02:39]} 9. Nc3 {[%clk 0:03:01]}  Qb6 {[%clk 0:02:39]} 10. Rb1 {[%clk 0:02:59]}  Bg4 {[%clk 0:02:36]} 11. O-O {[%clk 0:02:58]}  Bxf3 {[%clk 0:02:24]} 12. Bxf3 {[%clk 0:02:59]}  Nd7 {[%clk 0:02:24]} 13. b4 {[%clk 0:02:27]}  e5 {[%clk 0:02:14]} 14. dxe5 {[%clk 0:02:26]}  Nxe5 {[%clk 0:02:15]} 15. Be2 {[%clk 0:02:25]}  Nc4 {[%clk 0:01:44]} 16. Bxc4 {[%clk 0:02:03]}  Bxc3 {[%clk 0:01:43]} 17. Bd3 {[%clk 0:02:02]}  Nc7 {[%clk 0:01:33]} 18. Bd6 {[%clk 0:02:02]}  Ne6 {[%clk 0:01:26]} 19. Bxf8 {[%clk 0:02:02]}  Rxf8 {[%clk 0:01:27]} 20. Rb3 {[%clk 0:01:53]}  Bf6 {[%clk 0:01:24]} 21. g3 {[%clk 0:01:50]}  Rd8 {[%clk 0:01:19]} 22. Qf3 {[%clk 0:01:48]}  Kg7 {[%clk 0:01:19]} 23. c4 {[%clk 0:01:46]}  Qc7 {[%clk 0:00:58]} 24. cxd5 {[%clk 0:01:43]}  cxd5 {[%clk 0:00:59]} 25. Rd1 {[%clk 0:01:36]}  Qe5 {[%clk 0:00:58]} 26. Bf1 {[%clk 0:01:23]}  b6 {[%clk 0:00:49]} 27. Bh3 {[%clk 0:01:21]}  Nc7 {[%clk 0:00:44]} 28. Rbd3 {[%clk 0:01:20]}  Qe7 {[%clk 0:00:44]} 29. a3 {[%clk 0:01:20]}  a5 {[%clk 0:00:44]} 30. bxa5 {[%clk 0:01:20]}  bxa5 {[%clk 0:00:45]} 31. Qf4 {[%clk 0:01:11]}  Nb5 {[%clk 0:00:35]} 32. Rc1 {[%clk 0:01:06]}  d4 {[%clk 0:00:29]} 33. Bf1 {[%clk 0:00:50]}  Nxa3 {[%clk 0:00:23]} 34. exd4 {[%clk 0:00:45]}  Nb5 {[%clk 0:00:22]} 35. Re3 {[%clk 0:00:40]}  Qb4 {[%clk 0:00:22]} 36. Rf3 {[%clk 0:00:36]}  Qxd4 {[%clk 0:00:18]} 37. Bxb5 {[%clk 0:00:36]}  Qb2 {[%clk 0:00:19]} 38. Rc6 {[%clk 0:00:20]}  Rd1+ {[%clk 0:00:13]} 39. Bf1 {[%clk 0:00:20]}  Qb1 {[%clk 0:00:03]} 40. Qxf6+ {[%clk 0:00:20]}  Kh6 {[%clk 0:00:03]} 41. Qh8# {[%clk 0:00:20]} 1-0


[Site "https://www.chess.com"]

[Event "Titled Tuesday Blitz August 16 Late 2022"]
[White "Chigaev, Maksim"]
[Black "Andreikin, Dmitry"]
[WhiteFideId "4108116"]
[BlackFideId "4158814"]
[WhiteElo "2487"]
[BlackElo "2736"]
[Result "0-1"]
[Round "10"]
[TimeControl "180+1"]
[Date "2022.08.16"]
[WhiteClock "0:00:38"]
[BlackClock "0:01:21"]

1. e4 {[%clk 0:03:00]}  c5 {[%clk 0:02:59]} 2. Nf3 {[%clk 0:03:00]}  Nc6 {[%clk 0:02:59]} 3. Bb5 {[%clk 0:02:59]}  b6 {[%clk 0:03:00]} 4. O-O {[%clk 0:02:58]}  Bb7 {[%clk 0:03:00]} 5. Re1 {[%clk 0:02:59]}  e6 {[%clk 0:02:56]} 6. c3 {[%clk 0:02:58]}  a6 {[%clk 0:02:56]} 7. Bxc6 {[%clk 0:02:46]}  Bxc6 {[%clk 0:02:56]} 8. d4 {[%clk 0:02:47]}  cxd4 {[%clk 0:02:52]} 9. cxd4 {[%clk 0:02:44]}  d5 {[%clk 0:02:52]} 10. Ne5 {[%clk 0:02:30]}  Bb7 {[%clk 0:02:49]} 11. Qh5 {[%clk 0:02:21]}  Qe7 {[%clk 0:02:34]} 12. Bg5 {[%clk 0:02:15]}  Nf6 {[%clk 0:02:31]} 13. Bxf6 {[%clk 0:02:09]}  gxf6 {[%clk 0:02:31]} 14. Ng4 {[%clk 0:01:56]}  dxe4 {[%clk 0:02:30]} 15. Nc3 {[%clk 0:01:50]}  f5 {[%clk 0:02:26]} 16. Ne5 {[%clk 0:01:49]}  Bg7 {[%clk 0:02:25]} 17. Na4 {[%clk 0:01:38]}  Rd8 {[%clk 0:02:17]} 18. Rad1 {[%clk 0:01:32]}  b5 {[%clk 0:01:54]} 19. Nc5 {[%clk 0:01:06]}  Bxe5 {[%clk 0:01:48]} 20. Nxb7 {[%clk 0:01:04]}  Rxd4 {[%clk 0:01:47]} 21. Na5 {[%clk 0:00:59]}  Rxd1 {[%clk 0:01:32]} 22. Rxd1 {[%clk 0:01:00]}  Qc7 {[%clk 0:01:31]} 23. Qh4 {[%clk 0:00:38]}  Qxa5 {[%clk 0:01:21]} 0-1


[Site "https://www.chess.com"]

[Event "Titled Tuesday Blitz August 16 Late 2022"]
[White "Csonka, Balazs"]
[Black "Claverie, Christophe"]
[WhiteFideId "742910"]
[BlackFideId "605514"]
[WhiteElo "2404"]
[BlackElo "2300"]
[Result "1-0"]
[Round "10"]
[TimeControl "180+1"]
[Date "2022.08.16"]
[WhiteClock "0:00:07"]
[BlackClock "0:00:39"]

1. e4 {[%clk 0:02:55]}  c5 {[%clk 0:02:59]} 2. Nf3 {[%clk 0:02:55]}  d6 {[%clk 0:02:50]} 3. d4 {[%clk 0:02:55]}  cxd4 {[%clk 0:02:51]} 4. Nxd4 {[%clk 0:02:56]}  Nf6 {[%clk 0:02:51]} 5. Nc3 {[%clk 0:02:56]}  Nc6 {[%clk 0:02:52]} 6. Bg5 {[%clk 0:02:48]}  Bd7 {[%clk 0:02:52]} 7. Qd2 {[%clk 0:02:44]}  Rc8 {[%clk 0:02:51]} 8. O-O-O {[%clk 0:02:44]}  Nxd4 {[%clk 0:02:51]} 9. Qxd4 {[%clk 0:02:44]}  Qa5 {[%clk 0:02:52]} 10. f4 {[%clk 0:02:40]}  Rxc3 {[%clk 0:02:51]} 11. bxc3 {[%clk 0:02:40]}  e5 {[%clk 0:02:47]} 12. Qb4 {[%clk 0:02:40]}  Qxb4 {[%clk 0:02:43]} 13. cxb4 {[%clk 0:02:41]}  Nxe4 {[%clk 0:02:44]} 14. Bh4 {[%clk 0:02:41]}  g5 {[%clk 0:02:36]} 15. fxg5 {[%clk 0:02:35]}  Be7 {[%clk 0:02:35]} 16. Bc4 {[%clk 0:02:22]}  h6 {[%clk 0:02:25]} 17. Rhf1 {[%clk 0:02:12]}  Nxg5 {[%clk 0:02:24]} 18. Kb2 {[%clk 0:01:47]}  f6 {[%clk 0:02:15]} 19. Bd5 {[%clk 0:01:42]}  b6 {[%clk 0:02:13]} 20. Ra1 {[%clk 0:01:26]}  Kf8 {[%clk 0:02:11]} 21. a4 {[%clk 0:01:23]}  Kg7 {[%clk 0:02:10]} 22. a5 {[%clk 0:01:23]}  b5 {[%clk 0:02:10]} 23. Rac1 {[%clk 0:01:19]}  Rb8 {[%clk 0:02:05]} 24. Ka3 {[%clk 0:01:17]}  Ne6 {[%clk 0:01:55]} 25. c3 {[%clk 0:01:11]}  Nf4 {[%clk 0:01:53]} 26. Be4 {[%clk 0:00:40]}  h5 {[%clk 0:01:36]} 27. Rcd1 {[%clk 0:00:30]}  Be6 {[%clk 0:01:30]} 28. Bg3 {[%clk 0:00:21]}  Rc8 {[%clk 0:01:25]} 29. Kb2 {[%clk 0:00:22]}  Ne2 {[%clk 0:01:23]} 30. Rd3 {[%clk 0:00:18]}  Rc4 {[%clk 0:01:08]} 31. Re3 {[%clk 0:00:09]}  Nxg3 {[%clk 0:01:07]} 32. Rxg3+ {[%clk 0:00:09]}  Kf8 {[%clk 0:01:08]} 33. Bd3 {[%clk 0:00:08]}  Rh4 {[%clk 0:01:05]} 34. Bxb5 {[%clk 0:00:07]}  Rxh2 {[%clk 0:01:05]} 35. Bc6 {[%clk 0:00:06]}  Bc4 {[%clk 0:01:02]} 36. Rf2 {[%clk 0:00:06]}  a6 {[%clk 0:01:01]} 37. Re3 {[%clk 0:00:04]}  Kg7 {[%clk 0:00:55]} 38. Bf3 {[%clk 0:00:04]}  Rh1 {[%clk 0:00:54]} 39. Be2 {[%clk 0:00:04]}  Bb5 {[%clk 0:00:52]} 40. c4 {[%clk 0:00:03]}  Bd7 {[%clk 0:00:50]} 41. b5 {[%clk 0:00:03]}  Bc8 {[%clk 0:00:51]} 42. Rb3 {[%clk 0:00:03]}  Bd8 {[%clk 0:00:49]} 43. b6 {[%clk 0:00:03]}  Bb7 {[%clk 0:00:49]} 44. Bf3 {[%clk 0:00:04]}  e4 {[%clk 0:00:50]} 45. Bxe4 {[%clk 0:00:03]}  Bxe4 {[%clk 0:00:51]} 46. b7 {[%clk 0:00:03]}  Bxb7 {[%clk 0:00:51]} 47. Rxb7+ {[%clk 0:00:03]}  Kg6 {[%clk 0:00:52]} 48. Ra7 {[%clk 0:00:03]}  Bxa5 {[%clk 0:00:52]} 49. Rxa6 {[%clk 0:00:04]}  Bc7 {[%clk 0:00:49]} 50. Rc6 {[%clk 0:00:04]}  Bb8 {[%clk 0:00:49]} 51. Re2 {[%clk 0:00:04]}  Ba7 {[%clk 0:00:48]} 52. Rxd6 {[%clk 0:00:04]}  Bc5 {[%clk 0:00:47]} 53. Rc6 {[%clk 0:00:04]}  Bd4+ {[%clk 0:00:47]} 54. Kc2 {[%clk 0:00:04]}  Rg1 {[%clk 0:00:46]} 55. c5 {[%clk 0:00:05]}  Rf1 {[%clk 0:00:45]} 56. Kd3 {[%clk 0:00:05]}  Bg1 {[%clk 0:00:44]} 57. Rc7 {[%clk 0:00:05]}  Rd1+ {[%clk 0:00:43]} 58. Rd2 {[%clk 0:00:05]}  Rc1 {[%clk 0:00:43]} 59. Rc2 {[%clk 0:00:05]}  Rd1+ {[%clk 0:00:43]} 60. Ke2 {[%clk 0:00:06]}  Rd5 {[%clk 0:00:43]} 61. c6 {[%clk 0:00:06]}  Re5+ {[%clk 0:00:43]} 62. Kd3 {[%clk 0:00:07]}  Rd5+ {[%clk 0:00:42]} 63. Kc4 {[%clk 0:00:07]}  Rc5+ {[%clk 0:00:42]} 64. Kb3 {[%clk 0:00:07]}  Rb5+ {[%clk 0:00:43]} 65. Ka4 {[%clk 0:00:07]}  Rd5 {[%clk 0:00:41]} 66. Rb7 {[%clk 0:00:08]}  Rd4+ {[%clk 0:00:40]} 67. Kb3 {[%clk 0:00:08]}  Rd3+ {[%clk 0:00:39]} 68. Rc3 {[%clk 0:00:07]} 1-0


[Site "https://www.chess.com"]